[Event "Live Chess"]
[Site "Chess.com"]
[Date "2024.06.02"]
[Round "-"]
[White "f4nomore"]
[Black "ukraineZelensky"]
[Result "1-0"]
[WhiteElo "1293"]
[BlackElo "1242"]
[TimeControl "300"]
[EndTime "8:34:48 PDT"]
[Termination "f4nomore won on time"]

1. c4 {[%clk 0:04:51.6]} 1... e5 {[%clk 0:04:56.8]} 2. Nc3 {[%clk 0:04:49.8]}
2... c6 {[%clk 0:04:54]} 3. d3 {[%clk 0:04:48.7]} 3... d5 {[%clk 0:04:52.2]} 4.
cxd5 {[%clk 0:04:46.4]} 4... cxd5 {[%clk 0:04:50.6]} 5. g3 {[%clk 0:04:43]} 5...
d4 {[%clk 0:04:49]} 6. Ne4 {[%clk 0:04:40.7]} 6... Bb4+ {[%clk 0:04:40.8]} 7.
Bd2 {[%clk 0:04:38.7]} 7... Bxd2+ {[%clk 0:04:38.7]} 8. Qxd2 {[%clk 0:04:37.1]}
8... Nf6 {[%clk 0:04:20.2]} 9. Bg2 {[%clk 0:04:35]} 9... Nxe4 {[%clk 0:04:19]}
10. Bxe4 {[%clk 0:04:33.7]} 10... Nc6 {[%clk 0:04:16.4]} 11. Nf3 {[%clk
0:04:31.1]} 11... O-O {[%clk 0:04:10.4]} 12. O-O {[%clk 0:04:28.2]} 12... Bd7
{[%clk 0:04:06.7]} 13. Bxc6 {[%clk 0:04:13.1]} 13... Bxc6 {[%clk 0:04:04.7]} 14.
Nxe5 {[%clk 0:04:10.6]} 14... Qd5 {[%clk 0:03:53.6]} 15. Nf3 {[%clk 0:04:06.9]}
15... Rfe8 {[%clk 0:03:42.2]} 16. Rac1 {[%clk 0:03:57.3]} 16... Bd7 {[%clk
0:03:32.1]} 17. Rc7 {[%clk 0:03:46.9]} 17... Bg4 {[%clk 0:03:28.8]} 18. Qf4
{[%clk 0:03:34.2]} 18... Bxf3 {[%clk 0:03:09.4]} 19. exf3 {[%clk 0:03:29.8]}
19... Rf8 {[%clk 0:02:56.8]} 20. Kg2 {[%clk 0:03:25.2]} 20... Rac8 {[%clk
0:02:41.8]} 21. Rfc1 {[%clk 0:03:19.7]} 21... Rxc7 {[%clk 0:02:40.1]} 22. Rxc7
{[%clk 0:03:16.5]} 22... a6 {[%clk 0:02:34.9]} 23. Rc4 {[%clk 0:03:12.2]} 23...
b5 {[%clk 0:02:28.5]} 24. Rxd4 {[%clk 0:03:09.1]} 24... Qxa2 {[%clk 0:02:24.5]}
25. Rb4 {[%clk 0:03:04.4]} 25... Qe6 {[%clk 0:02:08.8]} 26. b3 {[%clk
0:02:55.8]} 26... Rd8 {[%clk 0:02:02.7]} 27. d4 {[%clk 0:02:50.1]} 27... Qd5
{[%clk 0:01:54.2]} 28. Qc7 {[%clk 0:02:36.5]} 28... Ra8 {[%clk 0:01:35.9]} 29.
Qc5 {[%clk 0:02:21.4]} 29... Qd7 {[%clk 0:01:20]} 30. d5 {[%clk 0:02:09.8]}
30... Rb8 {[%clk 0:01:17]} 31. Re4 {[%clk 0:01:56.5]} 31... Rc8 {[%clk 0:01:07]}
32. Qe3 {[%clk 0:01:46.2]} 32... h6 {[%clk 0:00:51.2]} 33. Rd4 {[%clk
0:01:41.8]} 33... Qd6 {[%clk 0:00:42.5]} 34. Qd3 {[%clk 0:01:22.8]} 34... b4
{[%clk 0:00:36]} 35. Qf5 {[%clk 0:01:10.9]} 35... Re8 {[%clk 0:00:25.5]} 36. Rf4
{[%clk 0:01:03]} 36... Re7 {[%clk 0:00:19.6]} 37. Qc8+ {[%clk 0:00:54]} 37...
Kh7 {[%clk 0:00:17.2]} 38. Qf5+ {[%clk 0:00:51.2]} 38... g6 {[%clk 0:00:15.4]}
39. Qd3 {[%clk 0:00:48.2]} 39... f5 {[%clk 0:00:09.1]} 40. Qd4 {[%clk
0:00:40.5]} 40... Re5 {[%clk 0:00:06.6]} 41. g4 {[%clk 0:00:35]} 1-0

[Event "Live Chess"]
[Site "Chess.com"]
[Date "2024.06.02"]
[Round "-"]
[White "MagnersCarlsberg2870"]
[Black "OliWally08"]
[Result "1-0"]
[WhiteElo "1754"]
[BlackElo "1287"]
[TimeControl "300"]
[EndTime "8:34:58 PDT"]
[Termination "MagnersCarlsberg2870 won by checkmate"]

1. d4 {[%clk 0:04:58.1]} 1... Nf6 {[%clk 0:04:58.6]} 2. Nf3 {[%clk 0:04:56.5]}
2... e6 {[%clk 0:04:58.1]} 3. e3 {[%clk 0:04:55.4]} 3... d5 {[%clk 0:04:57.5]}
4. Bd3 {[%clk 0:04:54.7]} 4... b6 {[%clk 0:04:57]} 5. Nbd2 {[%clk 0:04:53.7]}
5... Bb7 {[%clk 0:04:56.5]} 6. Qe2 {[%clk 0:04:52.8]} 6... Bd6 {[%clk
0:04:55.6]} 7. O-O {[%clk 0:04:50.9]} 7... O-O {[%clk 0:04:54.6]} 8. c3 {[%clk
0:04:48.5]} 8... c5 {[%clk 0:04:53.9]} 9. e4 {[%clk 0:04:47.6]} 9... cxd4 {[%clk
0:04:52.7]} 10. e5 {[%clk 0:04:45.8]} 10... dxc3 {[%clk 0:04:49.6]} 11. bxc3
{[%clk 0:04:44.8]} 11... Be7 {[%clk 0:04:43.5]} 12. exf6 {[%clk 0:04:43.7]}
12... Bxf6 {[%clk 0:04:43.4]} 13. Bb2 {[%clk 0:04:33.8]} 13... Qc7 {[%clk
0:04:40.8]} 14. Nb3 {[%clk 0:04:28.6]} 14... Nd7 {[%clk 0:04:38.1]} 15. Rac1
{[%clk 0:04:27.1]} 15... b5 {[%clk 0:04:35.1]} 16. h4 {[%clk 0:04:17.7]} 16...
a6 {[%clk 0:04:33.5]} 17. Ng5 {[%clk 0:04:15.1]} 17... Bxg5 {[%clk 0:04:26.9]}
18. hxg5 {[%clk 0:04:13.8]} 18... Qc6 {[%clk 0:04:23.9]} 19. Qh5 {[%clk
0:04:10.5]} 19... g6 {[%clk 0:04:21.6]} 20. Qh6 {[%clk 0:04:07]} 20... d4 {[%clk
0:04:20.3]} 21. f3 {[%clk 0:04:04.3]} 21... dxc3 {[%clk 0:04:16.5]} 22. Rxc3
{[%clk 0:03:58.6]} 22... Qb6+ {[%clk 0:04:14.2]} 23. Kh1 {[%clk 0:03:56.7]}
23... Kh8 {[%clk 0:04:13.3]} 24. Rc6+ {[%clk 0:03:55]} 24... Qd4 {[%clk
0:04:00.8]} 25. Bxd4+ {[%clk 0:03:52.3]} 25... e5 {[%clk 0:04:00.7]} 26. Bxe5+
{[%clk 0:03:45.2]} 26... Nxe5 {[%clk 0:03:58.9]} 27. Rc3 {[%clk 0:03:43.6]}
27... Nxd3 {[%clk 0:03:53.1]} 28. Rxd3 {[%clk 0:03:42.2]} 28... Rfd8 {[%clk
0:03:46.9]} 29. Rfd1 {[%clk 0:03:39.9]} 29... Rxd3 {[%clk 0:03:45.1]} 30. Rxd3
{[%clk 0:03:38.9]} 30... Rg8 {[%clk 0:03:44.8]} 31. Rd7 {[%clk 0:03:35.6]} 31...
Rg7 {[%clk 0:03:28]} 32. Rd8+ {[%clk 0:03:17.3]} 32... Rg8 {[%clk 0:03:25.6]}
33. Rd7 {[%clk 0:03:11.7]} 33... Rg7 {[%clk 0:03:21.1]} 34. Rxb7 {[%clk
0:03:10.6]} 34... a5 {[%clk 0:03:18.4]} 35. Rb8+ {[%clk 0:03:09]} 35... Rg8
{[%clk 0:03:17.2]} 36. Rxg8+ {[%clk 0:03:07.8]} 36... Kxg8 {[%clk 0:03:17.1]}
37. Nc5 {[%clk 0:03:05.7]} 37... f6 {[%clk 0:03:17]} 38. gxf6 {[%clk 0:03:04.5]}
38... Kf7 {[%clk 0:03:15.9]} 39. Qg7+ {[%clk 0:03:03.6]} 39... Ke8 {[%clk
0:03:14.8]} 40. Qe7# {[%clk 0:03:02.9]} 1-0

[Event "Live Chess"]
[Site "Chess.com"]
[Date "2024.06.02"]
[Round "-"]
[White "friarnator"]
[Black "stevochess11"]
[Result "1-0"]
[WhiteElo "2203"]
[BlackElo "1698"]
[TimeControl "300"]
[EndTime "8:35:03 PDT"]
[Termination "friarnator won by resignation"]

1. d4 {[%clk 0:04:58.2]} 1... c6 {[%clk 0:04:57.9]} 2. Nc3 {[%clk 0:04:56.9]}
2... d5 {[%clk 0:04:55.6]} 3. Bf4 {[%clk 0:04:56.5]} 3... f6 {[%clk 0:04:47.6]}
4. e3 {[%clk 0:04:55.4]} 4... g6 {[%clk 0:04:46.3]} 5. h4 {[%clk 0:04:51.8]}
5... h5 {[%clk 0:04:44.2]} 6. Bd3 {[%clk 0:04:49.6]} 6... Kf7 {[%clk 0:04:41.3]}
7. Qf3 {[%clk 0:04:48.3]} 7... Bg4 {[%clk 0:04:37.8]} 8. Qg3 {[%clk 0:04:47]}
8... Nh6 {[%clk 0:04:32.9]} 9. f3 {[%clk 0:04:46]} 9... Bf5 {[%clk 0:04:30.7]}
10. Bxh6 {[%clk 0:04:41.7]} 10... Bxd3 {[%clk 0:04:24.9]} 11. Bxf8 {[%clk
0:04:30.2]} 11... Bxc2 {[%clk 0:04:11.5]} 12. Bxe7 {[%clk 0:04:25.9]} 12... Qxe7
{[%clk 0:04:09.6]} 13. Kd2 {[%clk 0:04:25.2]} 13... Bf5 {[%clk 0:04:01.7]} 14.
Nge2 {[%clk 0:04:22.8]} 14... Re8 {[%clk 0:03:59.8]} 15. Qf2 {[%clk 0:04:21]}
15... Nd7 {[%clk 0:03:55.7]} 16. Rae1 {[%clk 0:04:19.2]} 16... Nb6 {[%clk
0:03:54.5]} 17. Kc1 {[%clk 0:04:17.4]} 17... Nc4 {[%clk 0:03:50.5]} 18. e4
{[%clk 0:04:15.2]} 18... Qb4 {[%clk 0:03:42.7]} 19. Ng3 {[%clk 0:04:09.8]} 19...
dxe4 {[%clk 0:03:36.2]} 20. fxe4 {[%clk 0:04:07.2]} 20... Bg4 {[%clk 0:03:07.6]}
21. Rhf1 {[%clk 0:04:05.5]} 21... Kg8 {[%clk 0:02:58.9]} 22. a3 {[%clk
0:04:02.6]} 22... Qb3 {[%clk 0:02:55.6]} 23. Qc2 {[%clk 0:03:57.7]} 23... Qa2
{[%clk 0:02:43.2]} 24. Nxa2 {[%clk 0:03:54.8]} 1-0

[Event "Live Chess"]
[Site "Chess.com"]
[Date "2024.06.02"]
[Round "-"]
[White "kylet1990"]
[Black "LL220284LL"]
[Result "0-1"]
[WhiteElo "781"]
[BlackElo "2483"]
[TimeControl "300"]
[EndTime "8:35:11 PDT"]
[Termination "LL220284LL won by resignation"]

1. e4 {[%clk 0:04:57.6]} 1... c5 {[%clk 0:04:59.3]} 2. Qh5 {[%clk 0:04:53.4]}
2... e6 {[%clk 0:04:56.2]} 3. Qxc5 {[%clk 0:04:51.5]} 3... Bxc5 {[%clk
0:04:54.6]} 4. Ba6 {[%clk 0:04:49]} 4... Nxa6 {[%clk 0:04:49.4]} 5. b4 {[%clk
0:04:46.4]} 5... Nxb4 {[%clk 0:04:46.6]} 6. Ba3 {[%clk 0:04:41.2]} 6... Nxc2+
{[%clk 0:04:44.9]} 7. Ke2 {[%clk 0:04:37.6]} 7... Nxa3 {[%clk 0:04:44.8]} 8. Nf3
{[%clk 0:04:36.8]} 8... Nc2 {[%clk 0:04:43.7]} 9. Ne5 {[%clk 0:04:35.4]} 9...
Nxa1 {[%clk 0:04:40]} 10. Nxf7 {[%clk 0:04:29.4]} 10... Kxf7 {[%clk 0:04:38.9]}
11. Kf3 {[%clk 0:04:25.6]} 11... Qa5 {[%clk 0:04:35.2]} 0-1

[Event "Live Chess"]
[Site "Chess.com"]
[Date "2024.06.02"]
[Round "-"]
[White "lateforthesky"]
[Black "elephantgerrald"]
[Result "1-0"]
[WhiteElo "2072"]
[BlackElo "871"]
[TimeControl "300"]
[EndTime "8:35:17 PDT"]
[Termination "lateforthesky won by checkmate"]

1. e4 {[%clk 0:04:55.9]} 1... e5 {[%clk 0:04:51.5]} 2. f4 {[%clk 0:04:53.8]}
2... exf4 {[%clk 0:04:49.7]} 3. Bc4 {[%clk 0:04:51.9]} 3... Nf6 {[%clk
0:04:45.1]} 4. Nc3 {[%clk 0:04:46.6]} 4... Bc5 {[%clk 0:04:29.4]} 5. d4 {[%clk
0:04:42.9]} 5... Bb4 {[%clk 0:04:26.2]} 6. Qd3 {[%clk 0:04:06.6]} 6... Bxc3+
{[%clk 0:04:17.6]} 7. bxc3 {[%clk 0:04:04.8]} 7... O-O {[%clk 0:04:09.7]} 8.
Bxf4 {[%clk 0:04:01.3]} 8... d6 {[%clk 0:04:01.9]} 9. O-O-O {[%clk 0:03:48.9]}
9... Nc6 {[%clk 0:03:58.3]} 10. Nf3 {[%clk 0:03:45.7]} 10... a5 {[%clk 0:03:47]}
11. Rhf1 {[%clk 0:03:40.1]} 11... b6 {[%clk 0:03:39.7]} 12. Bg5 {[%clk
0:03:37.6]} 12... Bg4 {[%clk 0:03:34.8]} 13. h3 {[%clk 0:03:35.2]} 13... Bxf3
{[%clk 0:03:27.3]} 14. Qxf3 {[%clk 0:03:29.2]} 14... Qd7 {[%clk 0:03:04.3]} 15.
Bxf6 {[%clk 0:03:24.4]} 15... d5 {[%clk 0:02:57.2]} 16. Qg3 {[%clk 0:03:11.8]}
16... g6 {[%clk 0:02:24.9]} 17. exd5 {[%clk 0:03:07.4]} 17... Nb8 {[%clk
0:02:15.4]} 18. Qh4 {[%clk 0:03:04.4]} 18... b5 {[%clk 0:02:04.7]} 19. Qh6
{[%clk 0:03:02.8]} 19... Qxh3 {[%clk 0:01:40.1]} 20. Qg7# {[%clk 0:03:00.3]} 1-0

[Event "Live Chess"]
[Site "Chess.com"]
[Date "2024.06.02"]
[Round "-"]
[White "McFim"]
[Black "dmitro74"]
[Result "1/2-1/2"]
[WhiteElo "1819"]
[BlackElo "1745"]
[TimeControl "300"]
[EndTime "8:35:24 PDT"]
[Termination "Game drawn by agreement"]

1. e4 {[%clk 0:04:58]} 1... e6 {[%clk 0:04:59]} 2. d4 {[%clk 0:04:54.1]} 2... d5
{[%clk 0:04:58.3]} 3. e5 {[%clk 0:04:52.6]} 3... c5 {[%clk 0:04:57.1]} 4. c3
{[%clk 0:04:51.5]} 4... Qb6 {[%clk 0:04:56.2]} 5. Nf3 {[%clk 0:04:50.2]} 5...
Bd7 {[%clk 0:04:55.4]} 6. Be2 {[%clk 0:04:48.6]} 6... Bb5 {[%clk 0:04:54.3]} 7.
O-O {[%clk 0:04:45.2]} 7... Bxe2 {[%clk 0:04:51.3]} 8. Qxe2 {[%clk 0:04:43.8]}
8... Nc6 {[%clk 0:04:50.7]} 9. Be3 {[%clk 0:04:40.2]} 9... cxd4 {[%clk
0:04:48.9]} 10. cxd4 {[%clk 0:04:38.2]} 10... Nge7 {[%clk 0:04:47.3]} 11. Na3
{[%clk 0:04:34.8]} 11... Nf5 {[%clk 0:04:43.3]} 12. Rfd1 {[%clk 0:04:31.4]}
12... Nxe3 {[%clk 0:04:34.2]} 13. fxe3 {[%clk 0:04:29.9]} 13... Bxa3 {[%clk
0:04:32]} 14. bxa3 {[%clk 0:04:28.3]} 14... O-O {[%clk 0:04:30.2]} 15. Rab1
{[%clk 0:04:24.9]} 15... Qc7 {[%clk 0:04:22.4]} 16. Rdc1 {[%clk 0:04:21.3]}
16... Qd7 {[%clk 0:04:20.4]} 17. Rb2 {[%clk 0:04:13.8]} 17... b6 {[%clk
0:04:17.1]} 18. Rbc2 {[%clk 0:04:12.1]} 18... Rfc8 {[%clk 0:04:12]} 19. Ne1
{[%clk 0:04:08.5]} 19... Na5 {[%clk 0:04:09.1]} 20. Nd3 {[%clk 0:03:53.9]} 20...
Nc4 {[%clk 0:04:02.5]} 21. Rc3 {[%clk 0:03:51.7]} 21... Rc7 {[%clk 0:03:50]} 22.
Nb2 {[%clk 0:03:48.4]} 22... Rac8 {[%clk 0:03:47.5]} 23. Nxc4 {[%clk 0:03:43.7]}
23... b5 {[%clk 0:03:34]} 24. Qb2 {[%clk 0:03:26.7]} 24... bxc4 {[%clk
0:03:26.6]} 25. Rb1 {[%clk 0:03:03.1]} 25... g6 {[%clk 0:03:20.7]} 26. Qb5
{[%clk 0:02:57]} 26... Qxb5 {[%clk 0:03:10.5]} 27. Rxb5 {[%clk 0:02:55]} 27...
Rd8 {[%clk 0:02:58.5]} 28. Kf2 {[%clk 0:02:46.5]} 28... Rdd7 {[%clk 0:02:57.1]}
29. a4 {[%clk 0:02:44.9]} 29... Rb7 {[%clk 0:02:54.6]} 30. Ke2 {[%clk
0:02:39.9]} 30... a6 {[%clk 0:02:53.3]} 31. Rxb7 {[%clk 0:02:21.6]} 31... Rxb7
{[%clk 0:02:51.8]} 32. Kd2 {[%clk 0:02:17.7]} 32... Rb2+ {[%clk 0:02:49.6]} 33.
Rc2 {[%clk 0:02:16.6]} 33... Rxc2+ {[%clk 0:02:47.1]} 34. Kxc2 {[%clk
0:02:15.5]} 34... a5 {[%clk 0:02:45.5]} 35. g4 {[%clk 0:02:11.6]} 35... g5
{[%clk 0:02:38.6]} 36. Kc3 {[%clk 0:02:06.9]} 36... Kg7 {[%clk 0:02:35.2]} 37.
e4 {[%clk 0:02:05.2]} 37... Kg6 {[%clk 0:02:30.2]} 38. h3 {[%clk 0:02:00.7]}
38... h5 {[%clk 0:02:22.1]} 39. exd5 {[%clk 0:01:55.8]} 39... exd5 {[%clk
0:02:18.9]} 40. Kd2 {[%clk 0:01:53.5]} 40... hxg4 {[%clk 0:02:00.1]} 41. hxg4
{[%clk 0:01:51.9]} 41... f5 {[%clk 0:01:51.6]} 42. exf6 {[%clk 0:01:49.9]} 42...
Kxf6 {[%clk 0:01:50.2]} 43. Kc3 {[%clk 0:01:48.4]} 43... Ke6 {[%clk 0:01:47.9]}
44. Kc2 {[%clk 0:01:47.1]} 44... Kd6 {[%clk 0:01:46.1]} 45. Kc3 {[%clk
0:01:45.9]} 1/2-1/2

[Event "Live Chess"]
[Site "Chess.com"]
[Date "2024.06.02"]
[Round "-"]
[White "Pablo_dmp"]
[Black "Zhevzh1k7"]
[Result "1-0"]
[WhiteElo "1985"]
[BlackElo "1128"]
[TimeControl "300"]
[EndTime "8:35:26 PDT"]
[Termination "Pablo_dmp won by checkmate"]

1. e4 {[%clk 0:04:59.8]} 1... c6 {[%clk 0:04:58.1]} 2. d4 {[%clk 0:04:58.7]}
2... d5 {[%clk 0:04:56.8]} 3. Nc3 {[%clk 0:04:58.6]} 3... dxe4 {[%clk
0:04:54.6]} 4. Nxe4 {[%clk 0:04:58.5]} 4... Bf5 {[%clk 0:04:53.6]} 5. Ng3 {[%clk
0:04:57.5]} 5... Bg6 {[%clk 0:04:53.2]} 6. Bc4 {[%clk 0:04:56.5]} 6... Nd7
{[%clk 0:04:50.7]} 7. N1e2 {[%clk 0:04:54.8]} 7... Ngf6 {[%clk 0:04:49.4]} 8.
O-O {[%clk 0:04:53.2]} 8... e6 {[%clk 0:04:48]} 9. Nf4 {[%clk 0:04:51.5]} 9...
Bd6 {[%clk 0:04:41.5]} 10. Nxg6 {[%clk 0:04:46.2]} 10... hxg6 {[%clk 0:04:38.8]}
11. f4 {[%clk 0:04:41.1]} 11... Qc7 {[%clk 0:04:29.9]} 12. c3 {[%clk 0:04:36.1]}
12... Nd5 {[%clk 0:04:27.4]} 13. Qg4 {[%clk 0:04:30.4]} 13... b5 {[%clk
0:04:19.5]} 14. Bb3 {[%clk 0:04:29.1]} 14... a5 {[%clk 0:04:14]} 15. a4 {[%clk
0:04:26.1]} 15... bxa4 {[%clk 0:04:11.5]} 16. Bxa4 {[%clk 0:04:23.1]} 16... Be7
{[%clk 0:03:55.8]} 17. Bd2 {[%clk 0:04:13.1]} 17... Rh4 {[%clk 0:03:53.1]} 18.
Qf3 {[%clk 0:04:09.9]} 18... Bf6 {[%clk 0:03:28.1]} 19. Ne4 {[%clk 0:04:06.9]}
19... Ke7 {[%clk 0:03:24.1]} 20. g3 {[%clk 0:04:03.1]} 20... Rh5 {[%clk
0:03:16.8]} 21. b3 {[%clk 0:03:49.1]} 21... Rah8 {[%clk 0:03:12.3]} 22. Rf2
{[%clk 0:03:43.3]} 22... N7b6 {[%clk 0:02:53.3]} 23. Qd3 {[%clk 0:03:24]} 23...
Nxa4 {[%clk 0:02:47.3]} 24. Rxa4 {[%clk 0:03:23.9]} 24... g5 {[%clk 0:02:33.6]}
25. c4 {[%clk 0:03:16.3]} 25... gxf4 {[%clk 0:02:16]} 26. cxd5 {[%clk
0:03:10.3]} 26... exd5 {[%clk 0:02:10]} 27. Nxf6 {[%clk 0:03:02.7]} 27... gxf6
{[%clk 0:02:05.4]} 28. Bxf4 {[%clk 0:03:00.8]} 28... Qb6 {[%clk 0:01:50.1]} 29.
Re2+ {[%clk 0:02:51.5]} 29... Kd7 {[%clk 0:01:45.4]} 30. Qe3 {[%clk 0:02:45.7]}
30... Qd8 {[%clk 0:01:35.1]} 31. b4 {[%clk 0:02:32]} 31... axb4 {[%clk
0:01:32.9]} 32. Ra7+ {[%clk 0:02:29.7]} 32... Kc8 {[%clk 0:01:29.6]} 33. Ra8+
{[%clk 0:02:25.9]} 33... Kd7 {[%clk 0:01:23.5]} 34. Rxd8+ {[%clk 0:02:25.8]}
34... Rxd8 {[%clk 0:01:22.4]} 35. Qe7+ {[%clk 0:02:25.7]} 35... Kc8 {[%clk
0:01:21.4]} 36. Qc7# {[%clk 0:02:25.6]} 1-0

[Event "Live Chess"]
[Site "Chess.com"]
[Date "2024.06.02"]
[Round "-"]
[White "NottheBishopSacrifice"]
[Black "davigator"]
[Result "1-0"]
[WhiteElo "2354"]
[BlackElo "2336"]
[TimeControl "300"]
[EndTime "8:35:38 PDT"]
[Termination "NottheBishopSacrifice won by resignation"]

1. d4 {[%clk 0:04:53.1]} 1... Nf6 {[%clk 0:04:57.2]} 2. Nf3 {[%clk 0:04:51.5]}
2... e6 {[%clk 0:04:56.5]} 3. c4 {[%clk 0:04:50.2]} 3... Bb4+ {[%clk 0:04:54.3]}
4. Bd2 {[%clk 0:04:49.3]} 4... a5 {[%clk 0:04:53.2]} 5. a3 {[%clk 0:04:48]} 5...
Be7 {[%clk 0:04:51.3]} 6. Nc3 {[%clk 0:04:46.5]} 6... d5 {[%clk 0:04:50.7]} 7.
Bf4 {[%clk 0:04:44.9]} 7... c6 {[%clk 0:04:49.3]} 8. e3 {[%clk 0:04:43.6]} 8...
O-O {[%clk 0:04:47.9]} 9. Be2 {[%clk 0:04:42.1]} 9... b6 {[%clk 0:04:46.9]} 10.
O-O {[%clk 0:04:40.5]} 10... Ba6 {[%clk 0:04:45.8]} 11. cxd5 {[%clk 0:04:38.8]}
11... Bxe2 {[%clk 0:04:43.9]} 12. Qxe2 {[%clk 0:04:38.7]} 12... exd5 {[%clk
0:04:42.3]} 13. Ne5 {[%clk 0:04:37]} 13... Ra7 {[%clk 0:04:38.5]} 14. Rac1
{[%clk 0:04:35.8]} 14... Bd6 {[%clk 0:04:36.6]} 15. Rfd1 {[%clk 0:04:34]} 15...
h6 {[%clk 0:04:08.9]} 16. Nd3 {[%clk 0:04:30.8]} 16... Re7 {[%clk 0:04:04.4]}
17. Bxd6 {[%clk 0:04:27.7]} 17... Qxd6 {[%clk 0:04:03.2]} 18. Qf3 {[%clk
0:04:27.3]} 18... Ne4 {[%clk 0:04:01.4]} 19. h3 {[%clk 0:04:23.1]} 19... Nd7
{[%clk 0:03:59.5]} 20. b4 {[%clk 0:04:19.5]} 20... axb4 {[%clk 0:03:43.3]} 21.
axb4 {[%clk 0:04:19.4]} 21... b5 {[%clk 0:03:40.7]} 22. Nc5 {[%clk 0:04:13.9]}
22... Ndf6 {[%clk 0:03:39.1]} 23. N3xe4 {[%clk 0:04:11.3]} 23... dxe4 {[%clk
0:03:35.6]} 24. Qe2 {[%clk 0:04:08.3]} 24... Nd5 {[%clk 0:03:34.7]} 25. Qb2
{[%clk 0:04:07.4]} 25... f5 {[%clk 0:03:33.5]} 26. Re1 {[%clk 0:04:04.6]} 26...
Rf6 {[%clk 0:03:31]} 27. f4 {[%clk 0:04:01.4]} 27... exf3 {[%clk 0:03:29.3]} 28.
Kh1 {[%clk 0:03:57.2]} 28... fxg2+ {[%clk 0:03:27.6]} 29. Qxg2 {[%clk
0:03:55.2]} 29... Nxe3 {[%clk 0:03:25.4]} 30. Qh2 {[%clk 0:03:54.1]} 30... Qxd4
{[%clk 0:03:22.4]} 31. Rcd1 {[%clk 0:03:49.5]} 31... Nxd1 {[%clk 0:03:19.1]} 32.
Rxe7 {[%clk 0:03:48.5]} 32... f4 {[%clk 0:03:11.6]} 33. Qg2 {[%clk 0:03:43.3]}
33... g5 {[%clk 0:03:10.1]} 34. Qc2 {[%clk 0:03:37.6]} 34... Rf7 {[%clk
0:03:04.5]} 35. Qg6+ {[%clk 0:03:33.5]} 35... Qg7 {[%clk 0:03:01]} 36. Re8+
{[%clk 0:03:32.1]} 36... Rf8 {[%clk 0:02:59.9]} 37. Rxf8+ {[%clk 0:03:28.4]}
37... Kxf8 {[%clk 0:02:59.1]} 38. Ne6+ {[%clk 0:03:28]} 38... Ke7 {[%clk
0:02:57.9]} 39. Nxg7 {[%clk 0:03:25.3]} 39... Ne3 {[%clk 0:02:52]} 40. Nf5+
{[%clk 0:03:23.5]} 40... Nxf5 {[%clk 0:02:48.5]} 41. Qxf5 {[%clk 0:03:23.4]} 1-0

[Event "Live Chess"]
[Site "Chess.com"]
[Date "2024.06.02"]
[Round "-"]
[White "santhoshrlokesh"]
[Black "NeilDruggan73"]
[Result "1-0"]
[WhiteElo "1516"]
[BlackElo "1716"]
[TimeControl "300"]
[EndTime "8:35:43 PDT"]
[Termination "santhoshrlokesh won by resignation"]

1. d4 {[%clk 0:04:59.7]} 1... Nf6 {[%clk 0:04:57.6]} 2. Bg5 {[%clk 0:04:58.8]}
2... g6 {[%clk 0:04:54.6]} 3. e3 {[%clk 0:04:58.1]} 3... Bg7 {[%clk 0:04:53.5]}
4. Bd3 {[%clk 0:04:57.2]} 4... d5 {[%clk 0:04:49.9]} 5. Nf3 {[%clk 0:04:56.4]}
5... Ne4 {[%clk 0:04:48.5]} 6. Nbd2 {[%clk 0:04:53.2]} 6... h6 {[%clk 0:04:47]}
7. Bh4 {[%clk 0:04:50.4]} 7... g5 {[%clk 0:04:44.5]} 8. Bg3 {[%clk 0:04:49.4]}
8... f5 {[%clk 0:04:40]} 9. Bxe4 {[%clk 0:04:43.4]} 9... fxe4 {[%clk 0:04:33.1]}
10. Ne5 {[%clk 0:04:42.7]} 10... O-O {[%clk 0:04:22.2]} 11. h4 {[%clk
0:04:36.1]} 11... e6 {[%clk 0:04:11.6]} 12. hxg5 {[%clk 0:04:32.6]} 12... Qxg5
{[%clk 0:04:06.9]} 13. Qe2 {[%clk 0:04:29]} 13... Bxe5 {[%clk 0:04:04.1]} 14.
Bxe5 {[%clk 0:04:26.3]} 14... Qxg2 {[%clk 0:04:00]} 15. O-O-O {[%clk 0:04:21.5]}
15... Rxf2 {[%clk 0:03:54.8]} 16. Qb5 {[%clk 0:04:05.2]} 16... c6 {[%clk
0:03:50.6]} 17. Qb3 {[%clk 0:04:00.6]} 17... Kf7 {[%clk 0:03:32.9]} 18. Rhg1
{[%clk 0:03:56.3]} 18... Qh2 {[%clk 0:03:23.6]} 19. Rg7+ {[%clk 0:03:53.3]}
19... Ke8 {[%clk 0:03:18.3]} 20. Bxh2 {[%clk 0:03:51.9]} 20... Rxh2 {[%clk
0:03:15.4]} 21. Qb4 {[%clk 0:03:49]} 1-0

[Event "Live Chess"]
[Site "Chess.com"]
[Date "2024.06.02"]
[Round "-"]
[White "degringolade64"]
[Black "halfberg"]
[Result "1-0"]
[WhiteElo "2083"]
[BlackElo "1891"]
[TimeControl "300"]
[EndTime "8:35:44 PDT"]
[Termination "degringolade64 won by resignation"]

1. e4 {[%clk 0:04:56.4]} 1... c5 {[%clk 0:04:58.6]} 2. Nf3 {[%clk 0:04:52.2]}
2... Nc6 {[%clk 0:04:57.6]} 3. Bb5 {[%clk 0:04:50.4]} 3... g6 {[%clk 0:04:54.3]}
4. Bxc6 {[%clk 0:04:48.7]} 4... dxc6 {[%clk 0:04:52.2]} 5. d3 {[%clk 0:04:47.9]}
5... Bg7 {[%clk 0:04:51.3]} 6. h3 {[%clk 0:04:47.5]} 6... e6 {[%clk 0:04:38.3]}
7. O-O {[%clk 0:04:42.1]} 7... Ne7 {[%clk 0:04:37.5]} 8. Be3 {[%clk 0:04:29.5]}
8... b6 {[%clk 0:04:35.4]} 9. Qc1 {[%clk 0:04:06]} 9... O-O {[%clk 0:04:22.6]}
10. Bh6 {[%clk 0:04:03.4]} 10... Ba6 {[%clk 0:04:01.9]} 11. Bxg7 {[%clk
0:03:59]} 11... Kxg7 {[%clk 0:04:00.2]} 12. Nc3 {[%clk 0:03:48.6]} 12... c4
{[%clk 0:03:57.9]} 13. d4 {[%clk 0:03:47.2]} 13... Qc7 {[%clk 0:03:47.5]} 14.
Qe3 {[%clk 0:03:36.9]} 14... Rad8 {[%clk 0:03:44.7]} 15. Rad1 {[%clk 0:03:34.4]}
15... Bb7 {[%clk 0:03:40.1]} 16. Rfe1 {[%clk 0:03:29.3]} 16... b5 {[%clk
0:03:36.4]} 17. Ne5 {[%clk 0:03:14.3]} 17... c5 {[%clk 0:03:29.6]} 18. Ng4
{[%clk 0:03:07.7]} 18... cxd4 {[%clk 0:03:26.4]} 19. Qh6+ {[%clk 0:03:01.4]}
19... Kh8 {[%clk 0:03:23.1]} 20. Nf6 {[%clk 0:03:00]} 1-0